fUST/lending_fUST_20240420
["ID","MTS","AMOUNT","RATE_DAILY","PERIOD"]
[322987374,1713575438032,-300.0,0.00029997,2]
[322987376,1713575438046,-594.33262155,0.00029998,2]
[322987378,1713575438055,-2262.69623224,0.00029998,2]
[322987380,1713575438065,-154.95351395,0.00029998,2]
[322987382,1713575438074,-720.66599539,0.00029998,2]
[322987384,1713575438083,-676.00874118,0.00029998,2]
[322987386,1713575438092,-612.24143816,0.00029998,2]
[322987388,1713575438101,-156.84586358,0.00029998,2]
[322987390,1713575438110,-332.21467201,0.00029998,2]
[322987392,1713575438120,-225.65281422,0.00029998,2]
[322987394,1713575438129,-188.89296375,0.00029998,2]
[322987396,1713575438138,-883.09222158,0.00029998,2]
[322987397,1713575438147,-154.86062544,0.00029999,2]
[322987399,1713575438156,-1833.45370997,0.0003,2]
[322987401,1713575438167,-576.30999217,0.0003,2]
[322987403,1713575438176,-9003.91854186,0.0003,2]
[322987405,1713575438187,-2999.9810115,0.0003,2]
[322987600,1713575440150,-166.666666,0.0003,2]
[322987602,1713575440162,-1220.11334265,0.0003,2]
[322987876,1713575443044,-6358.59174905,0.0003,2]
[322989788,1713576336172,-154.82968734,0.00027396,2]
[322989789,1713576336197,-169.139819,0.00027397,2]
[322989790,1713576336219,-172.50822093,0.00027397,2]
[322989791,1713576563103,-154.82968734,0.00026997,2]
[322989792,1713576563125,-183.09092525,0.00026998,5]
[322989793,1713576629327,174.13395259,0.00025297,2]
[322989812,1713576632053,-425.07055464,0.00025297,2]
[322989814,1713576632064,-290.25511256,0.00026998,7]
[322989845,1713576638069,-8706.08225998,0.00026998,7]
[322989847,1713576638079,-72.36621875,0.00026998,5]
[322989849,1713576638088,-14.74982407,0.00027397,2]
[322989851,1713576638097,-6346.52783136,0.00027899,2]
[322989853,1713576638106,-166.666666,0.00027987,2]
[322989855,1713576638115,-154.82968734,0.00028749,2]
[322989857,1713576638124,-166.666666,0.0002875,2]
[322989859,1713576638133,-166.666666,0.00029513,2]
[322989861,1713576638142,-203.3901934,0.000296,2]
[322989863,1713576638151,-203.3901934,0.000296,2]
[322989865,1713576638160,-208.7314474,0.000296,2]
[322989867,1713576638169,-300.0,0.00029899,2]
[322989869,1713576638178,-203.3901934,0.000299,2]
[322989871,1713576638187,-203.3901934,0.000299,2]
[322989873,1713576638196,-203.3901934,0.000299,2]
[322989875,1713576638205,-153.0,0.000299,2]
[322989877,1713576638214,-203.3901934,0.000299,2]
[322989879,1713576638224,-203.3901934,0.000299,2]
[322989881,1713576638233,-203.3901934,0.000299,2]
[322989883,1713576638242,-203.3901934,0.000299,2]
[322989884,1713576638255,-203.3901934,0.000299,2]
[322989886,1713576638268,-203.3901934,0.000299,2]
[322989888,1713576638277,-203.3901934,0.000299,2]
[322989890,1713576638286,-203.3901934,0.000299,2]
[322989892,1713576638296,-203.3901934,0.000299,2]
[322989894,1713576638305,-203.3901934,0.000299,2]
[322989896,1713576638314,-348.74328496,0.000299,4]
[322989898,1713576638325,-203.3901934,0.000299,2]
[322989900,1713576638334,-203.3901934,0.000299,2]
[322989902,1713576638344,-203.3901934,0.000299,2]
[322989905,1713576638353,-208.64170435,0.00029999,2]
[322989906,1713576638362,-205.36101136,0.00029999,2]
[322989908,1713576638371,-189.00504449,0.00029999,2]
[322989910,1713576638381,-155.14750633,0.00029999,2]
[322989912,1713576638390,-10997.14327375,0.0003,2]
[322989915,1713576638402,-574.65373156,0.0003,2]
[322989917,1713576638411,-1763.4346835,0.0003,3]
[322990234,1713576641808,-6346.61834366,0.00026997,2]
[322990236,1713576641818,-7141.5653165,0.0003,3]
[322990238,1713576641828,-4415.0,0.0003,3]
[322990240,1713576641837,-153.0,0.0003,2]
[322990242,1713576641846,-203.3901934,0.0003,2]
[322990244,1713576641855,-203.3901934,0.0003,2]
[322990246,1713576641864,-153.0,0.0003,2]
[322990248,1713576641873,-203.3901934,0.0003,2]
[322990250,1713576641882,-203.3901934,0.0003,2]
[322990252,1713576641891,-153.0,0.0003,2]
[322990254,1713576641900,-200.4263286,0.0003,2]
[322990256,1713576641909,-153.0,0.0003,2]
[322990258,1713576641918,-185.0,0.0003,2]
[322990260,1713576641929,-151.0,0.0003,2]
[322990262,1713576641938,-151.0,0.0003,2]
[322990264,1713576641947,-367.637058,0.0003023,2]
[322990266,1713576641956,-367.637058,0.0003023,2]
[322990268,1713576641965,-166.666666,0.00030276,2]
[322990270,1713576641974,-151.0,0.00030276,2]
[322990272,1713576641983,-151.0,0.00030276,2]
[322990274,1713576641991,-255.457144,0.00030276,2]
[322990276,1713576642001,-151.0,0.00030276,2]
[322990278,1713576642009,-617.722125,0.00030276,2]
[322990280,1713576642020,-617.722125,0.00030276,2]
[322990282,1713576642030,-162.69658,0.00030276,2]
[322990284,1713576642039,-151.0,0.00030276,2]
[322990298,1713576642152,-599.20450723,0.00030297,2]
[322990300,1713576642161,-586.0,0.000305,2]
[322990302,1713576642171,-151.0,0.00030567,2]
[322990304,1713576642180,-151.0,0.00030567,2]
[322990306,1713576642189,-367.637058,0.0003065,2]
[322990307,1713576642199,-367.637058,0.0003065,2]
[322990310,1713576642208,-1352.3101937,0.00030668,4]
[322990311,1713576642218,-276.0845604,0.000307,2]
[322990313,1713576642227,-151.0,0.000308,2]
[322990315,1713576642237,-151.0,0.000308,2]
[322990317,1713576642246,-2000.0,0.000308,2]
[322990319,1713576642259,-151.0,0.000308,2]
[322990322,1713576642271,-617.722125,0.000308,2]
[322990323,1713576642280,-617.722125,0.000308,2]
[322990326,1713576642290,-162.596155,0.000308,2]
[322990328,1713576642302,-212.531141,0.000308,2]
[322990330,1713576642311,-151.0,0.000308,2]
[322990332,1713576642320,-3112.02308451,0.000309,2]
[322990333,1713576642330,-367.637058,0.000309,2]
[322990335,1713576642340,-367.637058,0.000309,2]
[322990337,1713576642350,-151.0,0.000309,2]
[322990339,1713576642359,-151.0,0.000309,2]
[322990341,1713576642369,-151.0,0.000309,2]
[322990343,1713576642379,-617.722125,0.000309,2]
[322990345,1713576642388,-617.722125,0.000309,2]
[322990347,1713576642398,-1962.86676987,0.00031,2]
[322990349,1713576642406,-200.24367979,0.00031,4]
[322990351,1713576642416,-367.637058,0.00031,2]
[322990353,1713576642426,-367.637058,0.00031,2]
[322990355,1713576642435,-151.0,0.00031,2]
[322990357,1713576642444,-151.0,0.00031,2]
[322990359,1713576642453,-151.0,0.00031,2]
[322990361,1713576642462,-617.722125,0.00031,2]
[322990363,1713576642471,-617.722125,0.00031,2]
[322990365,1713576642480,-166.666666,0.00031039,2]
[322990367,1713576642489,-203.3901934,0.00031534,2]
[322990369,1713576642498,-417.0,0.00031607,2]
[322990371,1713576642507,-208.99677074,0.00031629,7]
[322990373,1713576642518,-208.99677074,0.00031798,7]
[322990375,1713576642527,-166.666666,0.00031802,2]
[322990377,1713576642537,-180.64375404,0.000319,2]
[322990379,1713576642546,-3141.38392503,0.00032,2]
[322990381,1713576642555,-367.637058,0.00032,2]
[322990383,1713576642564,-367.637058,0.00032,2]
[322990385,1713576642573,-151.0,0.00032,2]
[322990387,1713576642582,-151.0,0.00032,2]
[322990389,1713576642592,-151.0,0.00032,2]
[322990392,1713576642600,-617.722125,0.00032,2]
[322990395,1713576642609,-617.722125,0.00032,2]
[322990398,1713576642619,-150.0,0.000324,2]
[322990402,1713576642628,-180.64375404,0.00032585,2]
[322990405,1713576642637,-151.0,0.00032611,2]
[322990408,1713576642646,-151.0,0.00032611,2]
[322990410,1713576642655,-151.0,0.00032611,2]
[322990412,1713576642664,-617.722125,0.00032611,2]
[322990414,1713576642673,-617.722125,0.00032611,2]
[322990416,1713576642682,-367.637058,0.00032621,2]
[322990418,1713576642691,-367.637058,0.00032621,2]
[322990419,1713576642700,-153.0,0.00032696,2]
[322990421,1713576642709,-153.0,0.00032696,2]
[322990423,1713576642718,-153.0,0.00032696,2]
[322990425,1713576642727,-213.662464,0.00032877,2]
[322990427,1713576642735,-213.662464,0.00032877,2]
[322990429,1713576642745,-213.662464,0.00032877,2]
[322990431,1713576642755,-213.662464,0.00032877,2]
[322990433,1713576642764,-213.662464,0.00032877,2]
[322990435,1713576642775,-213.662464,0.00032877,2]
[322990437,1713576642784,-213.662464,0.00032877,2]
[322990439,1713576642793,-213.662464,0.00032877,2]
[322990441,1713576642802,-213.662464,0.00032877,2]
[322990443,1713576642811,-213.662464,0.00032877,2]
[322990445,1713576642820,-213.662464,0.00032877,2]
[322990447,1713576642829,-213.662464,0.00032877,2]
[322990449,1713576642838,-400.0,0.00032877,2]
[322990451,1713576642848,-367.637058,0.00032877,2]
[322990453,1713576642857,-367.637058,0.00032877,2]
[322990455,1713576642866,-213.662464,0.00032877,2]
[322990457,1713576642875,-213.662464,0.00032877,2]
[322990459,1713576642885,-151.0,0.00032877,2]
[322990462,1713576642894,-295.426224,0.00032877,2]
[322990463,1713576642903,-161.533822,0.00032877,2]
[322990465,1713576642913,-617.722125,0.00032877,2]
[322990467,1713576642922,-617.722125,0.00032877,2]
[322990469,1713576642930,-420.0,0.00032889,2]
[322990471,1713576642939,-1234.64783511,0.00033,2]
[322990473,1713576642949,-151.0,0.00033,2]
[322990475,1713576642957,-617.722125,0.00033,2]
[322990477,1713576642966,-617.722125,0.00033,2]
[322990479,1713576642975,-367.637058,0.00033165,2]
[322990481,1713576642985,-367.637058,0.00033165,2]
[322990483,1713576642994,-213.662464,0.00033165,2]
[322990485,1713576643003,-213.662464,0.00033165,2]
[322990487,1713576643013,-295.722039,0.00033165,2]
[322990489,1713576643025,-184.515747,0.00033165,2]
[322990491,1713576643034,-203.8891931,0.0003326,2]
[322990493,1713576643046,-425.30884426,0.0003327,7]
[322990495,1713576643056,-240.44986067,0.0003327,7]
[322990497,1713576643065,-500.0,0.0003327,7]
[322990499,1713576643075,-384.2801566,0.0003327,7]
[322990501,1713576643083,-500.0,0.0003327,7]
[322990503,1713576643092,-351.58954039,0.0003327,7]
[322990504,1713576643102,-180.64375404,0.00033271,2]
[322990506,1713576643111,-153.6353474,0.00033374,7]
[322990508,1713576643121,-154.82968734,0.00033732,4]
[322990510,1713576643130,-250.0,0.0003377,2]
[322990512,1713576643139,-151.0,0.00033799,2]
[322990514,1713576643149,-617.722125,0.00033799,2]
[322990516,1713576643158,-617.722125,0.00033799,2]
[322990518,1713576643168,-1000.0,0.000338,12]
[322990520,1713576643177,-1000.0,0.000338,16]
[322990522,1713576643188,-4028.27985482,0.000338,7]
[322991550,1713577537193,-274.746103,0.00027397,2]
[322991551,1713577537216,-203.3901933,0.00029178,2]
[322991552,1713577537245,-447.76875779,0.00030799,4]
[322991553,1713577627100,-255.457144,0.00030799,4]
[322991606,1713577838413,-164.563491,0.00027397,2]
[322991608,1713577838422,-235.14519843,0.00028699,2]
[322991610,1713577838431,-400.0,0.00030798,2]
[322991612,1713577838440,-2822.67317802,0.00030799,4]
[322991614,1713577838449,-7331.21795039,0.00030799,30]
[322991616,1713577838458,-171.4915314,0.0003124,2]
[322991618,1713577838467,-150.0,0.0003126,10]
[322991620,1713577838478,-417.0,0.00031587,2]
[322991622,1713577838487,-1006.308757,0.0003182,2]
[322991624,1713577838496,-195.09453432,0.00032094,7]
[322991626,1713577838505,-163.3296099,0.00032219,2]
[322991628,1713577838514,-262.74712444,0.00032353,2]
[322991630,1713577838523,-153.77133413,0.00032389,7]
[322991632,1713577838532,-154.34126672,0.00032453,7]
[322991634,1713577838541,-178.19071054,0.000325,2]
[322991636,1713577838550,-195.09453432,0.00032534,7]
[322991638,1713577838559,-262.74712444,0.0003257,2]
[322991640,1713577838568,-262.74712444,0.00032787,2]
[322991642,1713577838578,-262.74712444,0.00033004,2]
[322991644,1713577838589,-274.746103,0.00033165,2]
[322991645,1713577838601,-262.74712444,0.00033221,2]
[322991647,1713577838610,-155.12255597,0.00033275,4]
[322991650,1713577838620,-153.0,0.00033425,2]
[322991652,1713577838630,-262.74712444,0.00033438,2]
[322991653,1713577838640,-154.34126672,0.00033541,7]
[322991655,1713577838649,-262.74712444,0.00033655,2]
[322991657,1713577838658,-235.14519843,0.00033699,2]
[322991660,1713577838667,-306.55341105,0.00033756,6]
[322991662,1713577838678,-549.67437306,0.000338,7]
[322991664,1713577838687,-760.65,0.000338,20]
[322991666,1713577838696,-1588.83217963,0.00033854,2]
[322991668,1713577838705,-413.0,0.00033856,2]
[322991670,1713577838714,-262.74712444,0.00033872,2]
[322991672,1713577838725,-560.0,0.00033878,2]
[322991673,1713577838734,-189.99308217,0.000339,2]
[322991675,1713577838743,-2000.0,0.000339,2]
[322991677,1713577838753,-30783.41672102,0.0003395,3]
[322993589,1713578738140,-154.82968734,0.00027396,2]
[322993590,1713578738160,-166.064172,0.00027397,2]
[322993591,1713578738181,-581.5413377,0.00028996,2]
[322993592,1713578738201,-9.62780366,0.000299,2]
[322993593,1713578834091,-170.090164,0.00027397,2]
[322993594,1713578834111,-4303.11769622,0.000299,2]
[322993595,1713578834131,-300.0,0.00029986,2]
[322993596,1713578834150,-5378.17248786,0.00029987,2]
[322993597,1713578843097,-157.914281,0.00028996,2]
[322993598,1713578843117,-227.51061169,0.000299,2]
[322993614,1713579032411,-484.32229295,0.00028837,2]
[322993615,1713579032420,-166.666666,0.00028838,2]
[322993616,1713579032431,-151.53567492,0.0002984,2]
[322993617,1713579032440,-300.0,0.00029899,2]
[322993618,1713579032449,-13433.0726673,0.000299,2]
[322993619,1713579032458,-15207.62198972,0.00029987,2]
[322993620,1713579032467,-4160.95661247,0.00029998,2]
[322993621,1713579032476,-154.87214684,0.00029998,2]
[322993622,1713579032485,-653.04954434,0.00029998,2]
[322993623,1713579032494,-182.27521897,0.00029999,2]
[322993624,1713579032503,-164.69149568,0.00029999,2]
[322993625,1713579032512,-500.0,0.00029999,2]
[322993626,1713579032522,-367.95174556,0.00029999,2]
[322993627,1713579032531,-17502.84238361,0.0003,5]
[322993636,1713579038505,-5756.90593212,0.0003,5]
[322994172,1713579043654,-211.03139127,0.000279,2]
[322994174,1713579043663,-42.07082342,0.0003,5]
[322996645,1713579369128,740.21442221,0.000158,2]
[322996647,1713579412669,154.82968734,0.00015642,2]
[322996648,1713579426667,191.19100639,0.00015642,2]
[322996651,1713579868408,10000.0,0.00025,5]
[322996652,1713579939149,-205.95011293,0.00024998,2]
[322996653,1713579939169,-300.0,0.00024999,2]
[322996654,1713579939192,-32.08614168,0.00024999,2]
[322996655,1713580031096,-302.21205663,0.00022899,2]
[322996656,1713580034350,196.35770809,0.00022498,5]
[322996657,1713580146638,-154.82968734,0.00022898,2]
[322996658,1713580146660,-261.98999341,0.00022899,2]
[322996659,1713580146681,-150.0,0.000229,2]
[322996660,1713580146702,-206.4561468,0.00024998,2]
[322996661,1713580146724,-300.0,0.00024999,2]
[322996662,1713580146744,-300.0,0.00024999,2]
[322996663,1713580146765,-163023.22364437,0.00025,5]
[322996664,1713580151143,-11673.82696585,0.00025,5]
[322996665,1713580161134,-565.74138985,0.00024999,2]
[322996666,1713580161156,-313923.60437817,0.00025,5]
[322996667,1713580169078,-154.82968734,0.00024999,2]
[322996668,1713580169101,-93183.97785187,0.00025,5]
[322996709,1713580232710,-154.82968734,0.00024999,2]
[322996711,1713580232719,-300.0,0.00024999,2]
[322996712,1713580232729,-104.68637689,0.00025,5]
[322996713,1713580232740,-551.9505191,0.00025,5]
[322996749,1713580238768,-6967.39406788,0.00025,5]
[322997072,1713580241893,-6392.46668312,0.00025,5]
[323000238,1713580694184,820.82286642,0.00025,30]
[323000240,1713581150142,-977.24197565,0.00022826,2]
[323000241,1713581150162,-689.06304347,0.00022827,2]
[323000242,1713581150182,-205.95011293,0.00022827,2]
[323000243,1713581150202,-526.05116352,0.00022827,2]
[323000244,1713581150222,-673.16165461,0.00022828,2]
[323000245,1713581150241,-677.63652087,0.00022828,2]
[323000246,1713581150261,-329.44588054,0.00022828,2]
[323000247,1713581150281,-564.20205004,0.00022829,2]
[323000248,1713581150301,-1576.79072257,0.0002283,2]
[323000249,1713581150321,-154.82968734,0.0002283,2]
[323000250,1713581150342,-539.54322687,0.0002283,2]
[323000251,1713581150362,-1877.05102111,0.00022831,2]
[323000252,1713581150382,-300.0,0.00022834,2]
[323000253,1713581150402,-300.0,0.00022834,2]
[323000254,1713581150422,-364.56927838,0.000229,2]
[323000255,1713581150442,-614.56051879,0.00023106,2]
[323000256,1713581150462,-500.0,0.00023106,2]
[323000257,1713581150481,-500.0,0.00023106,2]
[323000258,1713581150502,-251.20798367,0.00023106,2]
[323000259,1713581150521,-500.0,0.00023106,2]
[323000260,1713581150541,-386.98482703,0.00023106,2]
[323000261,1713581150562,-500.0,0.00023106,2]
[323000262,1713581150582,-404.75067265,0.00023106,2]
[323000263,1713581150601,-500.0,0.00023106,2]
[323000264,1713581150623,-500.0,0.00023106,2]
[323000265,1713581150644,-585.3341027,0.00023107,2]
[323000266,1713581150664,-24900.0,0.00023107,2]
[323000267,1713581150685,-441.3781123,0.00023156,2]
[323000268,1713581150705,-157.914281,0.00023256,2]
[323000269,1713581150725,-420.0,0.00024792,2]
[323000270,1713581150745,-169.23961064,0.00024899,2]
[323000271,1713581150870,-169.23961064,0.000249,2]
[323000272,1713581150891,-10331.93451871,0.000249,2]
[323000273,1713581150910,-2304.4232183,0.000249,2]
[323000274,1713581150929,-249.66,0.00024986,3]
[323000275,1713581150948,-208.05,0.00024986,3]
[323000276,1713581150969,-500.0,0.00024995,2]
[323000277,1713581150988,-496.21652943,0.00024995,2]
[323000278,1713581151008,-581.93936207,0.00024995,2]
[323000279,1713581151027,-500.0,0.00024995,2]
[323000280,1713581151047,-569.6818295,0.00024995,2]
[323000281,1713581151066,-68921.82282678,0.00024996,2]
[323000282,1713581151087,-705.14851355,0.00024997,2]
[323000283,1713581151108,-203.86581647,0.00024998,2]
[323000284,1713581151127,-231.08212236,0.00024998,2]
[323000285,1713581151148,-278.1499298,0.00024998,2]
[323000286,1713581151167,-3508.50445239,0.00024998,2]
[323000287,1713581151187,-435.33655122,0.00024998,2]
[323000288,1713581151206,-155.89127444,0.00024998,2]
[323000289,1713581151225,-2832.90435107,0.00024998,2]
[323000290,1713581151245,-155.89843383,0.00024998,2]
[323000291,1713581151263,-1476.98563341,0.00024998,2]
[323000292,1713581151282,-393.43786285,0.00024998,2]
[323000293,1713581151302,-191.66072278,0.00024998,2]
[323000294,1713581151322,-400.0,0.00024998,2]
[323000295,1713581151341,-400.70666086,0.00024998,2]
[323000296,1713581151361,-328.82194226,0.00024998,2]
[323000297,1713581151381,-2912.63425394,0.00024998,2]
[323000298,1713581151403,-270.85027,0.00024998,2]
[323000299,1713581151423,-407.91177182,0.00024998,2]
[323000300,1713581151445,-11559.0709445,0.00024998,2]
[323000301,1713581231095,-300.0,0.00023997,2]
[323000302,1713581231116,-300.0,0.00023997,2]
[323000303,1713581231135,-564.20205004,0.00023998,2]
[323000304,1713581231154,-10895.0498085,0.00023999,2]
[323000305,1713581244089,-14004.9501915,0.00023999,2]
[323000306,1713581244109,-157.9142815,0.00023999,2]
[323000307,1713581244129,-338.47922129,0.000249,2]
[323000308,1713581244148,-173.37,0.0002499,3]
[323000309,1713581244168,-866.89,0.0002499,3]
[323000310,1713581244187,-7934.40014366,0.00024998,2]
[323000311,1713581244207,-1716.41672461,0.00024998,2]
[323000312,1713581244228,-193.51520401,0.00024998,2]
[323000313,1713581244248,-268.47173334,0.00024998,2]
[323000314,1713581244268,-553.63428364,0.00024998,2]
[323000315,1713581244288,-416.54836193,0.00024998,2]
[323000316,1713581244307,-595.85174877,0.00024998,2]
[323000317,1713581244327,-238.16310396,0.00024998,2]
[323000318,1713581244347,-170.86966333,0.00024999,2]
[323000319,1713581244369,-206.4561468,0.00024999,2]
[323000320,1713581244391,-527.43842655,0.00024999,2]
[323000321,1713581244412,-500.74026941,0.00024999,2]
[323000322,1713581244432,-523.1719227,0.00024999,2]
[323000323,1713581244453,-463.68829803,0.00024999,2]
[323000324,1713581244475,-458.43506979,0.00024999,2]
[323000325,1713581244495,-211.63896363,0.00024999,2]
[323000326,1713581244516,-63294.10978998,0.00025,5]
[323000328,1713581253338,-564.20205004,0.00024998,2]
[323000329,1713581253360,-324331.98121006,0.00025,5]
[323000457,1713581438470,-386.20584828,0.000249,2]
[323000459,1713581438479,-198.93543718,0.00024999,2]
[323000461,1713581438489,-300.0,0.00024999,2]
[323000463,1713581438498,-295.0,0.00024999,2]
[323000465,1713581438507,-15793.94253481,0.00025,5]
[323003102,1713581520749,5821.65769969,0.0003377,120]
[323003103,1713581520778,6000.0,0.0003377,120]
[323003111,1713581682534,227.5,0.00025,30]
[323003121,1713582427345,-300.0,0.00023858,2]
[323003122,1713582427479,-11104.0078581,0.00023859,2]
[323003123,1713582427501,-400.0,0.00024658,2]
[323003124,1713582427522,-2073.98089647,0.000249,2]
[323003125,1713582427548,-1049.29304238,0.00024998,2]
[323003126,1713582427572,-366.85544592,0.00024999,2]
[323003127,1713582427599,-268241.7148073,0.00025,5]
[323003129,1713582545097,-300.0,0.00024999,2]
[323003130,1713582545117,-466.76878889,0.00025,5]
[323003180,1713582638119,-300.0,0.00024999,2]
[323003182,1713582638128,-19700.0,0.00025,5]
[323003187,1713582638172,-320468.89725908,0.00025,5]
[323003361,1713582640164,-523.63700009,0.00025,5]
[323004813,1713582655653,159.26934628,0.000229,2]
[323005191,1713582770867,184.97338197,0.00022498,5]
[323005193,1713583046295,293.0,0.00022,2]
[323005194,1713583046771,293.0,0.00022192,2]
[323005196,1713583559247,302.63445604,0.00020398,2]
[323005197,1713583747230,-306.81274673,0.00023011,2]
[323005198,1713583747252,-604.82584303,0.00023012,2]
[323005199,1713583747273,-293.0,0.00023014,2]
[323005200,1713583747294,-300.0,0.00024164,2]
[323005201,1713583747316,-647.19468955,0.00024568,2]
[323005202,1713583747338,-311.54241578,0.00024658,2]
[323005203,1713583774103,-91.54641543,0.00024658,2]
[323005204,1713583774124,-166.64819097,0.00024749,2]
[323005205,1713583774145,-242.36078416,0.000249,2]
[323006018,1713583846400,-154.82968734,0.00024898,2]
[323006020,1713583846410,-204.54183116,0.00024899,2]
[323006022,1713583846419,-400.25529835,0.000249,2]
[323006024,1713583846428,-300.0,0.00024997,2]
[323006025,1713583846438,-300.0,0.00024997,2]
[323006026,1713583846447,-4160.95661247,0.00024998,2]
[323006027,1713583846458,-482.41713152,0.00024999,2]
[323006028,1713583846467,-182.27521897,0.00024999,2]
[323006029,1713583846476,-164.69149568,0.00024999,2]
[323006030,1713583846485,-16804.23987616,0.00025,5]
[323006031,1713583846503,-1532.84180828,0.00025,5]
[323007103,1713583861370,154.84515485,0.000229,2]
[323007106,1713584836138,-170.45152596,0.00022861,2]
[323007107,1713584836158,-154.82968734,0.00022862,2]
[323007108,1713584836181,-484.32229295,0.00022863,2]
[323007109,1713584836202,-161.93319074,0.00022864,2]
[323007110,1713584836221,-155.05003757,0.000229,2]
[323007111,1713584836241,-150.14125241,0.000229,2]
[323007112,1713584836261,-170.4550883,0.00023541,2]
[323007113,1713584836282,-178.4931456,0.00023683,2]
[323007114,1713584836302,-1842.34672847,0.000249,2]
[323007115,1713584836322,-167.0,0.00024932,2]
[323007116,1713584836342,-151.53567492,0.0002495,2]
[323007117,1713584836362,-300.0,0.00024997,2]
[323007118,1713584836384,-300.0,0.00024997,2]
[323007119,1713584836403,-154.87214684,0.00024998,2]
[323007120,1713584836424,-348.28730971,0.00024998,2]
[323007121,1713584836445,-552.72494088,0.00024998,2]
[323007122,1713584836599,-1795.89068566,0.00024998,2]
[323007123,1713584836620,-155.63620722,0.00024998,2]
[323007124,1713584836641,-629.82625198,0.00024998,2]
[323007125,1713584836661,-154.82968734,0.00024998,2]
[323007126,1713584836682,-653.04954434,0.00024998,2]
[323007127,1713584836702,-154.82968734,0.00024998,2]
[323007128,1713584836722,-605.18227835,0.00024999,2]
[323007129,1713584836744,-154.89724149,0.00024999,2]
[323007130,1713584836766,-50401.43118534,0.00025,5]
[323007131,1713584837113,-73298.21495,0.00025,5]
[323007132,1713584847087,-167.0,0.00024932,2]
[323007133,1713584847106,-147018.36027935,0.00025,5]
[323007135,1713584966151,-150.0,0.000229,2]
[323007136,1713584984044,122.37935465,0.00024,2]
[323007137,1713584984066,211.63896363,0.00024,2]
[323007171,1713585032530,-300.0,0.00023999,2]
[323007173,1713585032539,-287.0,0.00023999,2]
[323007175,1713585032549,-24565.98168172,0.00024,2]
[323007177,1713585032558,-170.45152596,0.00024899,2]
[323007179,1713585032567,-404.75791951,0.000249,2]
[323007181,1713585032577,-13433.0726673,0.000249,2]
[323007183,1713585032586,-155.55877471,0.00024998,2]
[323007185,1713585032596,-273.50174436,0.00024999,2]
[323007187,1713585032606,-158.70245362,0.00024999,2]
[323007188,1713585032615,-194.1452086,0.00024999,2]
[323007189,1713585032625,-52528.31565617,0.00025,5]
[323007190,1713585032636,-39775.86855824,0.00025,5]
[323007191,1713585032646,-186.02810754,0.00025,2]
[323007192,1713585032655,-33336.31828422,0.00025,5]
[323007193,1713585032666,-609.22747478,0.00025,5]
[323007194,1713585032678,-205641.68019,0.00025,5]
[323007195,1713585032689,-552.72494088,0.00025,5]
[323007204,1713585038897,-500.0,0.00024899,2]
[323007206,1713585038907,-500.0,0.00024899,2]
[323007208,1713585038917,-1988.348716,0.00025,5]
[323007210,1713585038929,-1851.78392373,0.00025,5]
[323007698,1713585043770,-1011.9415636,0.00025,5]
[323008008,1713585046660,-4640.00362265,0.00025,5]
[323008842,1713585507743,5275.68502416,0.00027699,120]
[323008855,1713586029093,-154.82968734,0.00022891,2]
[323008856,1713586029114,-469.3412373,0.00022892,2]
[323008857,1713586029137,-150.0,0.000229,2]
[323008858,1713586029158,-5148.0225839,0.0002364,2]
[323008859,1713586029179,-247.761909,0.00023785,2]
[323008860,1713586029203,-2563.7808035,0.00023839,2]
[323008861,1713586029223,-621.35973448,0.00024507,2]
[323008862,1713586029244,-300.0,0.00024996,2]
[323008863,1713586029269,-300.0,0.00024996,2]
[323008864,1713586029294,-272.37935465,0.00024998,2]
[323008865,1713586029315,-500.0,0.00024999,2]